[Event "4NCL 2019-20"]
[Site "Daventry"]
[Date "2020.02.08"]
[Round "5"]
[White "Sukandar, Irine Kharisma"]
[Black "Bukojemski, Adam"]
[Result "1-0"]
[ECO "A45"]
[WhiteElo "2408"]
[BlackElo "2201"]
[Annotator "ChessBase"]
[PlyCount "83"]
[EventDate "2020.01.11"]
[EventCountry "ENG"]
[SourceTitle "playchess.com"]
[Source "ChessBase"]
[SourceQuality "1"]
[TimeControl "40/6000:3000+30"]

1. d4 {[%emt 0:00:00]} Nf6 {[%emt 0:00:00]} 2. Bf4 {[%emt 0:00:00]} b5 {[%emt 0:00:00]} 3. e3 {[%emt 0:03:50]} Bb7 {[%emt 0:00:00]} 4. Nf3 {[%emt 0:00:00]} c5 {[%emt 0:00:00]} 5. dxc5 {[%emt 0:01:07]} Nd5 {[%emt 0:00:00]} 6. Bg3 {[%emt 0:00:46]} Qc8 {[%emt 0:01:10]} 7. Bxb5 {[%emt 0:06:21]} Qxc5 {[%emt 0:00:10]} 8. Bd3 {[%emt 0:00:50]} Nb4 {[%emt 0:05:38]} 9. O-O {[%emt 0:01:24]} Nxd3 {[%emt 0:00:00]} 10. cxd3 {[%emt 0:00:00]} d6 {[%emt 0:00:18]} 11. Nc3 {[%emt 0:00:06]} g6 {[%emt 0:00:36]} 12. Rc1 {[%emt 0:04:41]} Bg7 {[%emt 0:05:29]} 13. Qb3 {[%emt 0:00:48]} Bc6 {[%emt 0:04:06]} 14. d4 {[%emt 0:17:03]} Qb6 {[%emt 0:00:00]} 15. Nd2 {[%emt 0:00:43]} Qxb3 {[%emt 0:05:43]} 16. Nxb3 {[%emt 0:00:00]} a5 {[%emt 0:00:15]} 17. Nd2 {[%emt 0:01:15]} Kd7 {[%emt 0:00:20]} 18. d5 {[%emt 0:07:30]} Bb7 {[%emt 0:00:00]} 19. Na4 {[%emt 0:00:00]} Ra6 {[%emt 0:00:00]} 20. e4 {[%emt 0:08:27]} Rc8 {[%emt 0:04:06]} 21. Nc4 {[%emt 0:05:36]} Kd8 {[%emt 0:00:50]} 22. Bf4 {[%emt 0:03:33]} Nd7 {[%emt 0:00:08]} 23. Bd2 {[%emt 0:00:00]} Rca8 {[%emt 0:00:00]} 24. Be3 {[%emt 0:00:00]} f5 {[%emt 0:04:19]} 25. f3 {[%emt 0:02:51]} Rb8 {[%emt 0:00:48]} 26. b3 {[%emt 0:00:00]} Bc8 {[%emt 0:02:37]} 27. Kh1 {[%emt 0:00:00]} Rb5 {[%emt 0:07:16]} 28. Rc2 {[%emt 0:01:13]} Bf6 {[%emt 0:16:51]} 29. Rfc1 {[%emt 0:00:54]} Bb7 {[%emt 0:00:05]} 30. Na3 {[%emt 0:03:52]} Rb4 {[%emt 0:00:10]} 31. Bd2 {[%emt 0:00:28]} Rd4 {[%emt 0:00:09]} 32. Nc4 {[%emt 0:06:25]} Ke8 {[%emt 0:18:22]} 33. Nxa5 {[%emt 0:01:57]} Rxd2 {[%emt 0:00:26]} 34. Nxb7 {[%emt 0:00:00]} Rxc2 {[%emt 0:01:26]} 35. Rxc2 {[%emt 0:00:00]} Bd4 {[%emt 0:00:13]} 36. Rc8+ {[%emt 0:01:29]} Kf7 {[%emt 0:00:00]} 37. Nd8+ {[%emt 0:00:00]} Kf6 {[%emt 0:00:00]} 38. Nc6 {[%emt 0:00:39]} Ba1 {[%emt 0:01:23]} 39. Rc7 {[%emt 0:02:10]} Ne5 {[%emt 0:00:24]} 40. Nb4 {[%emt 0:01:08]} Ra5 {[%emt 0:00:30]} 41. Nc2 {[%emt 0:50:09]} Bb2 {[%emt 0:50:15]} 42. Nxb2 {[%emt 0:00:22]} 1-0

[Event "4NCL 2019-20"]
[Site "Daventry"]
[Date "2020.02.08"]
[Round "5"]
[White "Houska, Jovanka"]
[Black "O'Toole, George E"]
[Result "1-0"]
[ECO "B07"]
[WhiteElo "2401"]
[BlackElo "2252"]
[Annotator "NA"]
[PlyCount "70"]
[EventDate "2020.01.11"]
[EventCountry "ENG"]
[SourceTitle "playchess.com"]
[Source "ChessBase"]
[SourceQuality "1"]
[TimeControl "40/6000:3000+30"]

1. d4 {[%emt 0:00:00]} Nf6 {[%emt 0:00:00]} 2. Nf3 {[%emt 0:00:00]} g6 {[%emt 0:00:00]} 3. Nbd2 {[%emt 0:00:00]} Bg7 {[%emt 0:01:50]} 4. e4 {[%emt 0:00:00]} d6 {[%emt 0:00:11]} 5. Bb5+ {[%emt 0:00:00]} c6 {[%emt 0:00:05]} 6. Bd3 {[%emt 0:00:00]} O-O {[%emt 0:00:00]} 7. O-O {[%emt 0:00:00]} c5 {[%emt 0:02:23]} 8. c3 {[%emt 0:00:00]} cxd4 {[%emt 0:00:11]} 9. cxd4 {[%emt 0:00:00]} Nc6 {[%emt 0:03:23] B07: Pirc Defence: Miscellaneous Systems.} 10. d5 {[%emt 0:02:11]} Nb4 {[%emt 0:05:05]} 11. Bc4 {[%emt 0:10:59]} a5 {[%emt 0:05:37]} 12. Re1 {[%emt 0:01:56] [#]} a4 $146 {[%emt 0:05:34]} ({Predecessor:} 12... Bg4 13. a3 Na6 14. h3 Bxf3 15. Nxf3 Nc5 16. e5 dxe5 17. Nxe5 Nfe4 18. Bf4 Qb6 19. Re2 Rac8 {½-½ (18) Horvath,C (2510)-Gledura,B (2621) Budapest 2018}) 13. a3 {[%emt 0:02:19]} Na6 {[%emt 0:05:15]} 14. Qxa4 {[%emt 0:05:42]} Bd7 {[%emt 0:02:57]} 15. Qd1 {[%emt 0:01:37]} b5 {[%emt 0:00:00]} 16. Bd3 {[%emt 0:03:17]} Qc7 {[%emt 0:09:15]} 17. Nb3 {[%emt 0:01:53]} Ng4 {[%emt 0:03:22]} 18. h3 {[%emt 0:08:40]} Ne5 {[%emt 0:08:55]} 19. Nxe5 {[%emt 0:00:41]} Bxe5 {[%emt 0:00:00]} 20. Qe2 {[%emt 0:01:44]} Rfb8 {[%emt 0:02:18]} (20... Nc5 $14 21. Qc2 Rfc8) 21. Be3 {[%emt 0:00:00]} h5 {[%emt 0:00:50]} 22. Rec1 {[%emt 0:05:26]} Qd8 {[%emt 0:00:00]} 23. Nd4 {[%emt 0:06:03]} Nc5 {[%emt 0:00:28]} 24. Nc6 {[%emt 0:00:45]} Bxc6 {[%emt 0:04:25]} 25. dxc6 {[%emt 0:00:00]} Bxb2 {[%emt 0:01:38]} 26. Qxb2 {[%emt 0:15:01]} Nxd3 {[%emt 0:00:00]} 27. Qc2 {[%emt 0:00:00]} Nc5 $16 {[%emt 0:00:00]} 28. Bxc5 {[%emt 0:00:00]} dxc5 {[%emt 0:00:00]} 29. Qxc5 {[%emt 0:00:00]} Qc7 {[%emt 0:00:00]} 30. Rab1 {[%emt 0:12:22]} Ra5 {[%emt 0:03:52]} 31. Rb4 {[%emt 0:02:15]} Rb6 {[%emt 0:01:08]} 32. a4 {[%emt 0:00:37]} Rxa4 {[%emt 0:02:57]} 33. Rxa4 {[%emt 0:00:00]} bxa4 {[%emt 0:00:00]} 34. Qxb6 {[%emt 0:00:00]} Qxb6 {[%emt 0:00:00]} 35. c7 {[%emt 0:00:00]} Qb1 {[%emt 0:00:00]} 1-0

[Event "4NCL 2019-20"]
[Site "Daventry"]
[Date "2020.02.08"]
[Round "5"]
[White "Wells, Peter K"]
[Black "Maciol, Ryszard"]
[Result "1-0"]
[ECO "E59"]
[WhiteElo "2390"]
[BlackElo "2158"]
[Annotator "ChessBase"]
[PlyCount "71"]
[EventDate "2020.01.11"]
[EventCountry "ENG"]
[SourceTitle "playchess.com"]
[Source "ChessBase"]
[SourceQuality "1"]
[TimeControl "40/6000:3000+30"]

1. d4 {[%emt 0:00:00]} e6 {[%emt 0:00:00]} 2. c4 {[%emt 0:00:00]} Nf6 {[%emt 0:00:00]} 3. Nc3 {[%emt 0:00:00]} Bb4 {[%emt 0:00:00]} 4. e3 {[%emt 0:00:28]} c5 {[%emt 0:00:00]} 5. Bd3 {[%emt 0:00:45]} O-O {[%emt 0:00:00]} 6. Nf3 {[%emt 0:01:07]} d5 {[%emt 0:00:00]} 7. O-O {[%emt 0:00:00]} dxc4 {[%emt 0:00:00]} 8. Bxc4 {[%emt 0:00:00]} Nc6 {[%emt 0:00:17]} 9. a3 {[%emt 0:13:12]} Bxc3 {[%emt 0:01:20]} 10. bxc3 {[%emt 0:00:00]} Qc7 {[%emt 0:00:00]} 11. Bb2 {[%emt 0:09:12]} e5 {[%emt 0:02:42]} 12. h3 {[%emt 0:02:11]} Bf5 {[%emt 0:09:17]} 13. Ba2 {[%emt 0:04:35]} Rad8 {[%emt 0:07:32]} 14. Qe2 {[%emt 0:04:27]} Rfe8 {[%emt 0:04:03]} 15. Rfd1 {[%emt 0:18:38]} e4 {[%emt 0:09:18]} 16. Nh2 {[%emt 0:03:34]} Nd7 {[%emt 0:14:51]} 17. c4 {[%emt 0:14:17]} cxd4 {[%emt 0:10:44]} 18. exd4 {[%emt 0:00:47]} Nb6 {[%emt 0:00:26]} 19. Rac1 {[%emt 0:00:41]} Qe7 {[%emt 0:03:02]} 20. Qe3 {[%emt 0:03:03]} Rd7 {[%emt 0:05:32]} 21. Nf1 {[%emt 0:07:10]} Bg6 {[%emt 0:06:29]} 22. Ba1 {[%emt 0:03:02]} Qh4 {[%emt 0:03:50]} 23. d5 {[%emt 0:02:13]} Ne5 {[%emt 0:05:49]} 24. c5 {[%emt 0:00:08]} Nc8 {[%emt 0:00:35]} 25. Ng3 {[%emt 0:06:19]} Rde7 {[%emt 0:04:20]} 26. d6 {[%emt 0:02:38]} Rd7 {[%emt 0:00:00]} 27. Qc3 {[%emt 0:00:50]} Kh8 {[%emt 0:01:28]} 28. Bd5 {[%emt 0:00:03]} f5 {[%emt 0:00:50]} 29. Bxb7 {[%emt 0:00:00]} Rxb7 {[%emt 0:02:26]} 30. c6 {[%emt 0:00:00]} Rf7 {[%emt 0:03:30]} 31. d7 {[%emt 0:00:00]} Rd8 {[%emt 0:01:02]} 32. dxc8=Q {[%emt 0:00:00]} Nf3+ {[%emt 0:00:00]} 33. gxf3 {[%emt 0:00:00]} Rxc8 {[%emt 0:00:00]} 34. Rd7 {[%emt 0:00:06]} Rxd7 {[%emt 0:00:00]} 35. cxd7 {[%emt 0:00:00]} Rg8 {[%emt 0:00:00]} 36. Qxg7+ {[%emt 0:00:00]} 1-0

[Event "4NCL 2019-20"]
[Site "Daventry"]
[Date "2020.02.08"]
[Round "5"]
[White "Rendle, Thomas E"]
[Black "Kanyamarala, Tarun"]
[Result "1/2-1/2"]
[ECO "B23"]
[WhiteElo "2361"]
[BlackElo "2349"]
[Annotator "NA"]
[PlyCount "54"]
[EventDate "2020.01.11"]
[EventCountry "ENG"]
[SourceTitle "playchess.com"]
[Source "ChessBase"]
[SourceQuality "1"]
[TimeControl "40/6000:3000+30"]

1. e4 c5 {[%emt 0:00:00]} 2. Nc3 {[%emt 0:00:00]} Nc6 {[%emt 0:00:00]} 3. Bb5 {[%emt 0:00:00]} Nd4 {[%emt 0:00:00]} 4. Nf3 {[%emt 0:00:00]} a6 {[%emt 0:00:00]} 5. Bd3 {[%emt 0:00:00]} Nc6 {[%emt 0:00:00]} 6. O-O {[%emt 0:00:00]} d6 {[%emt 0:00:00]} 7. Nd5 {[%emt 0:01:13]} g6 {[%emt 0:08:56]} 8. c3 {[%emt 0:01:46]} Bg7 {[%emt 0:01:35]} 9. Bc2 {[%emt 0:03:00]} Bg4 {[%emt 0:06:39]} 10. h3 {[%emt 0:02:29]} Bxf3 {[%emt 0:00:00]} 11. Qxf3 {[%emt 0:00:00]} Nf6 {[%emt 0:00:00]} 12. Nxf6+ {[%emt 0:00:04]} Bxf6 {[%emt 0:00:00]} 13. d3 {[%emt 0:00:06]} O-O $11 {[%emt 0:00:00]} 14. Be3 b5 {[%emt 0:04:03]} 15. a3 Qd7 {[%emt 0:12:22]} 16. Rad1 {[%emt 0:16:29]} Rac8 17. Bb1 {[%emt 0:00:00]} b4 18. d4 {[%emt 0:00:00]} cxd4 19. cxd4 {[%emt 0:00:00]} bxa3 20. bxa3 {[%emt 0:00:00]} Na5 21. Bc1 {[%emt 0:00:00]} Qa4 22. Qd3 {[%emt 0:00:00]} Rc4 23. Be3 {[%emt 0:00:00]} Rfc8 24. Ba2 {[%emt 0:00:00]} Rc2 25. Qxa6 {[%emt 0:00:00]} R8c6 26. Qa8+ {[%emt 0:00:00]} Rc8 27. Qa6 {[%emt 0:00:00]} R8c6 1/2-1/2

[Event "4NCL 2019-20"]
[Site "Daventry"]
[Date "2020.02.08"]
[Round "5"]
[White "Griffiths, Ryan Rhys"]
[Black "Mitchell, Martin"]
[Result "1-0"]
[ECO "A14"]
[WhiteElo "2354"]
[BlackElo "2207"]
[Annotator "ChessBase"]
[PlyCount "103"]
[EventDate "2020.01.11"]
[EventCountry "ENG"]
[SourceTitle "playchess.com"]
[Source "ChessBase"]
[SourceQuality "1"]
[TimeControl "40/6000:3000+30"]

1. c4 {[%emt 0:00:00]} Nf6 {[%emt 0:00:00]} 2. g3 {[%emt 0:00:00]} e6 {[%emt 0:00:00]} 3. Bg2 {[%emt 0:00:00]} d5 {[%emt 0:00:00]} 4. Nf3 {[%emt 0:00:00]} Be7 {[%emt 0:00:00]} 5. O-O {[%emt 0:00:00]} O-O {[%emt 0:00:00]} 6. b3 {[%emt 0:00:00]} c5 {[%emt 0:02:21]} 7. cxd5 {[%emt 0:00:00]} Nxd5 {[%emt 0:04:44]} 8. Bb2 {[%emt 0:00:00]} Bf6 {[%emt 0:04:03]} 9. Qc1 {[%emt 0:03:21]} b6 {[%emt 0:05:11]} 10. Nc3 {[%emt 0:07:00]} Nxc3 11. Bxc3 {[%emt 0:01:03]} Bb7 {[%emt 0:05:47]} 12. Rd1 {[%emt 0:13:20]} Nc6 {[%emt 0:07:27]} 13. e3 {[%emt 0:00:00]} Bxc3 {[%emt 0:04:20]} 14. Qxc3 {[%emt 0:00:00]} Qe7 {[%emt 0:00:16]} 15. a3 {[%emt 0:00:20]} Rfd8 {[%emt 0:01:28]} 16. Rab1 {[%emt 0:00:00]} Rac8 17. d3 {[%emt 0:00:00]} Rd7 18. Rd2 {[%emt 0:00:00]} Ba6 19. Ne1 {[%emt 0:00:00]} Bb7 20. b4 {[%emt 0:00:00]} cxb4 21. axb4 {[%emt 0:00:00]} Nd4 22. Qa1 {[%emt 0:00:00]} Bxg2 23. Kxg2 {[%emt 0:00:00]} Nf5 24. Nf3 {[%emt 0:00:00]} Rdc7 25. Ra2 {[%emt 0:00:00]} Nd6 26. b5 {[%emt 0:00:00]} f6 27. d4 {[%emt 0:00:00]} Qd7 28. Qb2 {[%emt 0:00:00]} Nc4 29. Qe2 {[%emt 0:00:00]} Qd5 30. e4 {[%emt 0:00:00]} Qb7 31. Re1 {[%emt 0:00:00]} Na5 32. g4 {[%emt 0:00:00]} Rc3 33. Rd2 {[%emt 0:00:00]} Nb3 34. Rdd1 {[%emt 0:00:00]} Nc1 35. Qd2 {[%emt 0:00:00]} Nd3 36. Re3 {[%emt 0:00:00]} Nf4+ 37. Kf1 {[%emt 0:00:00]} Rc2 38. Qb4 {[%emt 0:00:00]} Nh3 39. Nd2 {[%emt 0:00:00]} Nf4 40. Qb3 {[%emt 0:00:00]} Qc7 41. d5 {[%emt 0:50:22]} exd5 42. exd5 {[%emt 0:00:30]} Kh8 43. d6 {[%emt 0:00:30]} Qd7 44. Re7 {[%emt 0:00:30]} Qxg4 45. Qf3 {[%emt 0:00:30]} Qxf3 46. Nxf3 {[%emt 0:00:30]} Ng6 47. Rxa7 {[%emt 0:00:30]} Rc1 48. Rxc1 {[%emt 0:00:30]} Rxc1+ 49. Ke2 {[%emt 0:00:30]} Rc8 50. Nd4 {[%emt 0:00:30]} Re8+ 51. Kf1 {[%emt 0:00:30]} Nf8 52. Nc6 {[%emt 0:00:30]} 1-0

[Event "4NCL 2019-20"]
[Site "Daventry"]
[Date "2020.02.08"]
[Round "5"]
[White "Bates, Richard A"]
[Black "Astaneh Lopez, Alex"]
[Result "1/2-1/2"]
[ECO "D76"]
[WhiteElo "2351"]
[BlackElo "2441"]
[Annotator "ChessBase"]
[PlyCount "88"]
[EventDate "2020.01.11"]
[EventCountry "ENG"]
[SourceTitle "playchess.com"]
[Source "ChessBase"]
[SourceQuality "1"]
[TimeControl "40/6000:3000+30"]

1. d4 {[%emt 0:00:00]} Nf6 {[%emt 0:09:36]} 2. Nf3 {[%emt 0:00:00]} g6 {[%emt 0:00:00]} 3. g3 {[%emt 0:00:00]} Bg7 {[%emt 0:00:05]} 4. c4 {[%emt 0:00:00]} d5 {[%emt 0:00:00]} 5. cxd5 {[%emt 0:00:00]} Nxd5 {[%emt 0:00:00]} 6. Bg2 {[%emt 0:00:00]} Nb6 {[%emt 0:00:00]} 7. O-O {[%emt 0:01:01]} Nc6 {[%emt 0:05:36]} 8. e3 {[%emt 0:00:00]} O-O {[%emt 0:00:00]} 9. Nc3 {[%emt 0:00:00]} e5 {[%emt 0:00:33]} 10. d5 {[%emt 0:02:24]} Na5 {[%emt 0:00:00]} 11. e4 {[%emt 0:05:35]} c6 {[%emt 0:00:00]} 12. h3 {[%emt 0:03:26]} cxd5 {[%emt 0:02:12]} 13. exd5 {[%emt 0:00:10]} Re8 {[%emt 0:14:28]} 14. Re1 {[%emt 0:04:33]} Nac4 {[%emt 0:14:19]} 15. b3 {[%emt 0:27:28]} Nd6 {[%emt 0:05:29]} 16. Bg5 {[%emt 0:04:48]} f6 {[%emt 0:01:39]} 17. Be3 {[%emt 0:00:16]} Bd7 {[%emt 0:16:15]} 18. Rc1 {[%emt 0:05:39]} Rc8 {[%emt 0:00:37]} 19. a4 {[%emt 0:02:12]} Bf8 {[%emt 0:07:17]} 20. g4 {[%emt 0:01:50]} Bg7 {[%emt 0:02:08]} 21. Re2 {[%emt 0:05:46]} e4 {[%emt 0:03:00]} 22. Nd4 {[%emt 0:01:12]} f5 {[%emt 0:00:00]} 23. Rec2 {[%emt 0:03:21]} Qf6 {[%emt 0:03:49]} 24. g5 {[%emt 0:01:54]} Qe7 {[%emt 0:01:37]} 25. a5 {[%emt 0:02:37]} Na8 {[%emt 0:03:09]} 26. Nce2 {[%emt 0:04:15]} Nf7 {[%emt 0:00:57]} 27. h4 {[%emt 0:03:00]} Rxc2 {[%emt 0:01:57]} 28. Rxc2 {[%emt 0:00:01]} Qa3 {[%emt 0:00:21]} 29. Ne6 {[%emt 0:00:32]} Be5 {[%emt 0:01:12]} 30. Bf4 {[%emt 0:05:50]} Qd6 {[%emt 0:02:08]} 31. Bxe5 {[%emt 0:01:53]} Nxe5 {[%emt 0:00:00]} 32. Qd4 {[%emt 0:00:23]} b6 {[%emt 0:00:00]} 33. a6 {[%emt 0:03:15]} Bxe6 {[%emt 0:00:10]} 34. dxe6 {[%emt 0:00:00]} Qxe6 {[%emt 0:00:13]} 35. Rc3 {[%emt 0:03:08]} Nd3 {[%emt 0:00:34]} 36. Rxd3 {[%emt 0:00:45]} exd3 {[%emt 0:00:00]} 37. Bd5 {[%emt 0:00:38]} dxe2 {[%emt 0:00:00]} 38. Bxe6+ {[%emt 0:00:00]} Rxe6 {[%emt 0:00:00]} 39. Qd8+ {[%emt 0:00:00]} Kf7 {[%emt 0:00:00]} 40. Qd7+ {[%emt 0:00:00]} Re7 {[%emt 0:00:00]} 41. Qd5+ {[%emt 0:49:19]} Kf8 {[%emt 0:03:02]} 42. Qd8+ {[%emt 0:00:00]} Re8 {[%emt 0:00:23]} 43. Qd6+ {[%emt 0:00:00]} Kf7 {[%emt 0:00:11]} 44. Qd7+ {[%emt 0:00:00]} Re7 {[%emt 0:49:03]} 1/2-1/2

[Event "4NCL 2019-20"]
[Site "Daventry"]
[Date "2020.02.08"]
[Round "5"]
[White "Macklin, Paul"]
[Black "Turner, Matthew J"]
[Result "1/2-1/2"]
[ECO "C54"]
[WhiteElo "2341"]
[BlackElo "2521"]
[Annotator "RC"]
[PlyCount "35"]
[EventDate "2020.01.11"]
[EventCountry "ENG"]
[SourceTitle "playchess.com"]
[Source "ChessBase"]
[SourceQuality "1"]
[TimeControl "40/6000:3000+30"]

1. e4 {[%emt 0:00:00]} e5 {[%emt 0:00:00]} 2. Nf3 {[%emt 0:00:00]} Nc6 {[%emt 0:00:00]} 3. Bc4 {[%emt 0:00:00]} Bc5 {[%emt 0:00:00]} 4. c3 {[%emt 0:00:00]} Nf6 {[%emt 0:00:00]} 5. d3 {[%emt 0:00:00]} O-O {[%emt 0:00:00]} 6. Bb3 {[%emt 0:01:39]} d6 {[%emt 0:00:06]} 7. O-O {[%emt 0:00:32]} h6 {[%emt 0:00:23]} 8. Nbd2 {[%emt 0:08:50]} a6 {[%emt 0:00:28]} 9. h3 {[%emt 0:00:31]} Ba7 {[%emt 0:00:06]} 10. Re1 {[%emt 0:00:00]} Be6 {[%emt 0:02:17]} 11. Nf1 {[%emt 0:01:48]} Bxb3 {[%emt 0:00:00]} 12. Qxb3 {[%emt 0:00:00]} Rb8 {[%emt 0:07:23]} 13. Be3 {[%emt 0:02:23]} Bxe3 {[%emt 0:00:00]} 14. Nxe3 {[%emt 0:00:00]} Kh7 {[%emt 0:00:41]} 15. Rad1 {[%emt 0:04:41]} Qc8 {[%emt 0:06:46]} 16. Nd5 {[%emt 0:01:46]} Nxd5 {[%emt 0:07:07]} 17. exd5 {[%emt 0:00:21]} Ne7 {[%emt 0:00:00]} 18. d4 {[%emt 0:09:04]} 1/2-1/2

[Event "4NCL 2019-20"]
[Site "Daventry"]
[Date "2020.02.08"]
[Round "5"]
[White "Rogers, Jonathan W"]
[Black "Ivell, Nicholas W"]
[Result "1/2-1/2"]
[ECO "D34"]
[WhiteElo "2335"]
[BlackElo "2177"]
[Annotator "ChessBase"]
[PlyCount "62"]
[EventDate "2020.01.11"]
[EventCountry "ENG"]
[SourceTitle "playchess.com"]
[Source "ChessBase"]
[SourceQuality "1"]
[TimeControl "40/6000:3000+30"]

1. d4 {[%emt 0:00:00]} d5 {[%emt 0:00:00]} 2. Nf3 {[%emt 0:00:00]} e6 {[%emt 0:00:00]} 3. c4 {[%emt 0:00:00]} c5 {[%emt 0:00:00]} 4. cxd5 {[%emt 0:00:00]} exd5 {[%emt 0:00:00]} 5. g3 {[%emt 0:00:54]} Nc6 {[%emt 0:00:00]} 6. Bg2 {[%emt 0:00:00]} Nf6 {[%emt 0:00:00]} 7. O-O {[%emt 0:00:00]} Be7 {[%emt 0:00:00]} 8. Nc3 {[%emt 0:00:00]} O-O {[%emt 0:00:00]} 9. Be3 {[%emt 0:00:00]} c4 {[%emt 0:03:36]} 10. Ne5 {[%emt 0:00:00]} Be6 {[%emt 0:07:41]} 11. Nxc4 {[%emt 0:00:00]} dxc4 {[%emt 0:00:07]} 12. d5 {[%emt 0:00:00]} Nxd5 {[%emt 0:01:34]} 13. Nxd5 {[%emt 0:00:00]} Bd6 {[%emt 0:05:46]} 14. Qa4 {[%emt 0:27:18]} Be5 15. Rad1 {[%emt 0:00:00]} Rb8 16. Qxc4 {[%emt 0:00:00]} Qa5 17. b4 {[%emt 0:00:00]} Qa4 18. f4 {[%emt 0:00:00]} Bd6 19. f5 {[%emt 0:00:00]} Bxd5 20. Qxd5 {[%emt 0:00:00]} Bxb4 21. f6 {[%emt 0:00:00]} Rfd8 22. Qg5 {[%emt 0:00:00]} g6 23. Bd5 {[%emt 0:00:00]} Bf8 24. Rd2 {[%emt 0:00:00]} Nb4 25. Bb3 {[%emt 0:00:00]} Qc6 26. Rfd1 {[%emt 0:00:00]} Rxd2 27. Rxd2 {[%emt 0:00:00]} Re8 28. Bf2 {[%emt 0:00:00]} Qc1+ 29. Kg2 {[%emt 0:00:00]} Qc6+ 30. Kg1 {[%emt 0:00:00]} Qc1+ 31. Kg2 {[%emt 0:00:00]} Qc6+ 1/2-1/2

[Event "4NCL 2019-20"]
[Site "Daventry"]
[Date "2020.02.08"]
[Round "5"]
[White "Ansell, Simon T"]
[Black "Arkell, Keith C"]
[Result "1/2-1/2"]
[ECO "A45"]
[WhiteElo "2334"]
[BlackElo "2460"]
[Annotator "ChessBase"]
[PlyCount "115"]
[EventDate "2020.01.11"]
[EventCountry "ENG"]
[SourceTitle "playchess.com"]
[Source "ChessBase"]
[SourceQuality "1"]
[TimeControl "40/6000:3000+30"]

1. d4 {[%emt 0:00:00]} Nf6 {[%emt 0:00:00]} 2. Bf4 {[%emt 0:00:00]} c5 {[%emt 0:00:00]} 3. dxc5 {[%emt 0:00:00]} Na6 {[%emt 0:00:00]} 4. Qd4 {[%emt 0:00:00]} Qa5+ {[%emt 0:03:12]} 5. c3 {[%emt 0:00:00]} Qxc5 {[%emt 0:00:00]} 6. e3 {[%emt 0:08:10]} b6 {[%emt 0:00:19]} 7. Nf3 {[%emt 0:01:20]} Bb7 {[%emt 0:00:41]} 8. Nbd2 {[%emt 0:00:54]} g6 {[%emt 0:04:47]} 9. Be5 {[%emt 0:23:19]} Bg7 {[%emt 0:05:59]} 10. Bxa6 {[%emt 0:07:50]} Bxa6 {[%emt 0:00:00]} 11. Bxf6 {[%emt 0:01:28]} Bxf6 {[%emt 0:00:00]} 12. Qxc5 {[%emt 0:00:00]} bxc5 {[%emt 0:00:07]} 13. Ne4 {[%emt 0:00:00]} d6 {[%emt 0:01:54]} 14. Nxf6+ {[%emt 0:00:00]} exf6 {[%emt 0:00:00]} 15. O-O-O {[%emt 0:00:00]} Ke7 {[%emt 0:00:00]} 16. Rhe1 {[%emt 0:00:00]} Bc4 {[%emt 0:02:47]} 17. Kb1 {[%emt 0:05:29]} a5 {[%emt 0:07:31]} 18. e4 {[%emt 0:02:12]} Rhe8 {[%emt 0:02:38]} 19. Re3 {[%emt 0:00:00]} Ra6 {[%emt 0:04:57]} 20. Nd2 {[%emt 0:06:40]} Be6 {[%emt 0:00:00]} 21. Nf1 {[%emt 0:00:00]} Kd7 {[%emt 0:03:04]} 22. Ng3 {[%emt 0:02:45]} Kc7 {[%emt 0:00:15]} 23. Rd2 {[%emt 0:03:04]} Bd7 {[%emt 0:01:36]} 24. Kc1 {[%emt 0:00:30]} Bc6 {[%emt 0:00:47]} 25. Rf3 {[%emt 0:05:44]} f5 {[%emt 0:04:48]} 26. Re2 {[%emt 0:02:31]} Re7 {[%emt 0:01:46]} 27. Rf4 {[%emt 0:00:00]} fxe4 {[%emt 0:01:57]} 28. f3 {[%emt 0:00:00]} f5 {[%emt 0:04:26]} 29. fxe4 {[%emt 0:00:00]} fxe4 {[%emt 0:00:00]} 30. c4 {[%emt 0:04:16]} Ra8 {[%emt 0:07:06]} 31. Kd2 {[%emt 0:02:11]} Rb8 {[%emt 0:03:52]} 32. Ke3 {[%emt 0:00:43]} Rb4 {[%emt 0:01:06]} 33. Rc2 {[%emt 0:00:00]} a4 {[%emt 0:05:42]} 34. Nf1 {[%emt 0:00:00]} Rb8 {[%emt 0:00:00]} 35. Nd2 {[%emt 0:00:00]} Rd8 {[%emt 0:01:04]} 36. h4 {[%emt 0:04:01]} Kb6 {[%emt 0:01:55]} 37. Rf6 {[%emt 0:00:40]} Re5 {[%emt 0:00:04]} 38. Rc1 {[%emt 0:01:14]} Rh5 {[%emt 0:12:04]} 39. g3 {[%emt 0:01:00]} Re5 {[%emt 0:04:00]} 40. b3 {[%emt 0:01:11]} Re7 {[%emt 0:01:11]} 41. g4 {[%emt 0:55:27]} Kc7 {[%emt 0:50:19]} 42. Rf4 {[%emt 0:01:38]} axb3 {[%emt 0:01:39]} 43. axb3 {[%emt 0:01:20]} Ra8 {[%emt 0:04:19]} 44. Rcf1 {[%emt 0:01:42]} d5 {[%emt 0:00:28]} 45. cxd5 {[%emt 0:00:06]} Bxd5 {[%emt 0:00:03]} 46. Rc1 {[%emt 0:00:30]} Kb6 {[%emt 0:01:51]} 47. Rf6+ {[%emt 0:02:58]} Kb5 {[%emt 0:00:18]} 48. Rd6 {[%emt 0:00:41]} Bb7 {[%emt 0:00:00]} 49. Nc4 {[%emt 0:00:00]} Ra6 {[%emt 0:00:00]} 50. Ra1 {[%emt 0:00:00]} Rxd6 {[%emt 0:00:00]} 51. Nxd6+ {[%emt 0:00:00]} Kc6 {[%emt 0:00:00]} 52. Nc4 {[%emt 0:00:00]} Bc8 {[%emt 0:00:00]} 53. g5 {[%emt 0:00:00]} Be6 {[%emt 0:00:00]} 54. Ra6+ {[%emt 0:00:00]} Kb7 {[%emt 0:00:00]} 55. Rb6+ {[%emt 0:00:00]} Kc7 {[%emt 0:00:00]} 56. Rb5 {[%emt 0:00:00]} Kc6 {[%emt 0:00:00]} 57. Rb6+ {[%emt 0:00:00]} Kc7 {[%emt 0:00:00]} 58. Rb5 {[%emt 0:00:00]} 1/2-1/2